[Event "Early-Titled-Tuesday-Blitz-April-02-2024"]
[Site "Chess.com"]
[Date "2024.04.02"]
[Round "7"]
[White "kereswasbest"]
[Black "elcala"]
[Result "1-0"]
[WhiteElo "2251"]
[BlackElo "1825"]
[TimeControl "180+1"]
[EndTime "9:12:33 PDT"]
[Termination "kereswasbest won by resignation"]

1. e4 {[%clk 0:02:55.5]} 1... d5 {[%clk 0:02:59.4]} 2. exd5 {[%clk 0:02:55.1]}
2... Qxd5 {[%clk 0:03:00.3]} 3. Nc3 {[%clk 0:02:53.4]} 3... Qd6 {[%clk
0:03:00.7]} 4. d4 {[%clk 0:02:53.9]} 4... Nf6 {[%clk 0:03:00.3]} 5. Bc4 {[%clk
0:02:53.8]} 5... Nc6 {[%clk 0:02:50.2]} 6. d5 {[%clk 0:02:47.1]} 6... Ne5 {[%clk
0:02:45.4]} 7. Bb3 {[%clk 0:02:45.7]} 7... Ng6 {[%clk 0:02:33.2]} 8. Nf3 {[%clk
0:02:42.2]} 8... Bg4 {[%clk 0:02:32.9]} 9. h3 {[%clk 0:02:42.3]} 9... Bxf3
{[%clk 0:02:29.1]} 10. Qxf3 {[%clk 0:02:43.2]} 10... O-O-O {[%clk 0:02:28.4]}
11. Be3 {[%clk 0:02:39.3]} 11... a6 {[%clk 0:02:22.3]} 12. O-O-O {[%clk
0:02:37.8]} 12... Ne5 {[%clk 0:02:18.1]} 13. Qg3 {[%clk 0:02:36.9]} 13... Ng6
{[%clk 0:02:11.9]} 14. f4 {[%clk 0:02:30.4]} 14... Nh5 {[%clk 0:02:03.9]} 15.
Qg4+ {[%clk 0:02:30.2]} 1-0

[Event "Early-Titled-Tuesday-Blitz-April-02-2024"]
[Site "Chess.com"]
[Date "2024.04.02"]
[Round "7"]
[White "rionelG"]
[Black "dianamirza"]
[Result "1-0"]
[WhiteElo "2188"]
[BlackElo "1963"]
[TimeControl "180+1"]
[EndTime "9:12:39 PDT"]
[Termination "rionelG won by resignation"]

1. e4 {[%clk 0:03:00.9]} 1... d5 {[%clk 0:02:55.3]} 2. exd5 {[%clk 0:03:00.3]}
2... Qxd5 {[%clk 0:02:56.2]} 3. Nc3 {[%clk 0:03:00.8]} 3... Qd8 {[%clk
0:02:55.8]} 4. d4 {[%clk 0:02:57.6]} 4... Nf6 {[%clk 0:02:56.7]} 5. Bf4 {[%clk
0:02:55.8]} 5... g6 {[%clk 0:02:57.6]} 6. Qd2 {[%clk 0:02:55.9]} 6... Bg7 {[%clk
0:02:58.5]} 7. O-O-O {[%clk 0:02:53.7]} 7... c5 {[%clk 0:02:57]} 8. Bb5+ {[%clk
0:02:46.2]} 8... Kf8 {[%clk 0:02:50.6]} 9. Nf3 {[%clk 0:02:37.3]} 9... cxd4
{[%clk 0:02:46.9]} 10. Nxd4 {[%clk 0:02:38.2]} 10... a6 {[%clk 0:02:44.8]} 11.
Ne6+ {[%clk 0:02:37.7]} 11... fxe6 {[%clk 0:02:33.9]} 12. Qxd8+ {[%clk
0:02:33.2]} 12... Kf7 {[%clk 0:02:34.4]} 13. Qa5 {[%clk 0:02:25.6]} 13... Nh5
{[%clk 0:02:23.6]} 14. Bxb8 {[%clk 0:02:16.6]} 14... Rxb8 {[%clk 0:02:19.3]} 15.
Bc4 {[%clk 0:02:16.1]} 15... Nf4 {[%clk 0:02:15.7]} 16. Qc7 {[%clk 0:02:11.1]}
1-0

[Event "Early-Titled-Tuesday-Blitz-April-02-2024"]
[Site "Chess.com"]
[Date "2024.04.02"]
[Round "7"]
[White "campochess"]
[Black "schachlana"]
[Result "0-1"]
[WhiteElo "2179"]
[BlackElo "2341"]
[TimeControl "180+1"]
[EndTime "9:12:41 PDT"]
[Termination "schachlana won by resignation"]

1. Nc3 {[%clk 0:02:55]} 1... d5 {[%clk 0:02:55.8]} 2. d4 {[%clk 0:02:54.7]} 2...
e6 {[%clk 0:02:54.5]} 3. Bf4 {[%clk 0:02:54.4]} 3... c5 {[%clk 0:02:53.6]} 4. e3
{[%clk 0:02:53.2]} 4... Nf6 {[%clk 0:02:53.4]} 5. Nf3 {[%clk 0:02:51]} 5... Nc6
{[%clk 0:02:52]} 6. Nb5 {[%clk 0:02:46.4]} 6... Qa5+ {[%clk 0:02:22.3]} 7. c3
{[%clk 0:02:43.9]} 7... e5 {[%clk 0:01:57.4]} 8. dxe5 {[%clk 0:02:41.1]} 8...
Nh5 {[%clk 0:01:56.3]} 9. Nc7+ {[%clk 0:02:37.3]} 9... Qxc7 {[%clk 0:01:54.9]}
10. Qxd5 {[%clk 0:02:36.2]} 10... Nxf4 {[%clk 0:01:54.2]} 11. exf4 {[%clk
0:02:34.8]} 11... Be6 {[%clk 0:01:54.7]} 12. Qe4 {[%clk 0:02:33.8]} 12... O-O-O
{[%clk 0:01:48.9]} 13. f5 {[%clk 0:02:32.9]} 13... Bd5 {[%clk 0:01:49.1]} 14.
Qg4 {[%clk 0:02:32.7]} 14... Nxe5 {[%clk 0:01:45.6]} 15. O-O-O {[%clk
0:02:28.9]} 15... Nxg4 {[%clk 0:01:45.3]} 0-1

[Event "Early-Titled-Tuesday-Blitz-April-02-2024"]
[Site "Chess.com"]
[Date "2024.04.02"]
[Round "7"]
[White "Rashad_Zeynalli"]
[Black "ViIIagra"]
[Result "1-0"]
[WhiteElo "2702"]
[BlackElo "2893"]
[TimeControl "180+1"]
[EndTime "9:12:58 PDT"]
[Termination "Rashad_Zeynalli won by resignation"]

1. d4 {[%clk 0:03:00.9]} 1... d6 {[%clk 0:03:00.1]} 2. Bf4 {[%clk 0:02:55.5]}
2... Nf6 {[%clk 0:02:58.4]} 3. e3 {[%clk 0:02:55.5]} 3... g6 {[%clk 0:02:58.2]}
4. h3 {[%clk 0:02:54.9]} 4... Bg7 {[%clk 0:02:56.4]} 5. Nf3 {[%clk 0:02:55.4]}
5... O-O {[%clk 0:02:56.6]} 6. Be2 {[%clk 0:02:56.3]} 6... c5 {[%clk 0:02:57]}
7. O-O {[%clk 0:02:56.4]} 7... Qb6 {[%clk 0:02:56.5]} 8. Nbd2 {[%clk 0:02:48.8]}
8... Qxb2 {[%clk 0:02:50]} 9. Nc4 {[%clk 0:02:47.1]} 9... Qb4 {[%clk 0:02:49.9]}
10. c3 {[%clk 0:02:46.4]} 10... Qxc3 {[%clk 0:02:43.8]} 11. Rc1 {[%clk
0:02:44.8]} 11... Qb4 {[%clk 0:02:44]} 12. Rb1 {[%clk 0:02:45.1]} 12... Qc3
{[%clk 0:02:36.6]} 13. Rb3 {[%clk 0:02:45.3]} 13... Ne4 {[%clk 0:02:37.3]} 14.
Rxc3 {[%clk 0:02:41.8]} 14... Nxc3 {[%clk 0:02:33.8]} 15. Qd2 {[%clk 0:02:41.4]}
15... Nxe2+ {[%clk 0:02:34.2]} 16. Qxe2 {[%clk 0:02:42.3]} 16... Nc6 {[%clk
0:02:30.7]} 17. dxc5 {[%clk 0:02:37.3]} 17... dxc5 {[%clk 0:02:31.6]} 18. Rd1
{[%clk 0:02:35.1]} 18... f6 {[%clk 0:02:18.8]} 19. e4 {[%clk 0:02:29.1]} 19...
Be6 {[%clk 0:02:11.3]} 20. Ne3 {[%clk 0:02:24.6]} 20... Rfd8 {[%clk 0:02:11]}
21. Nd5 {[%clk 0:02:24.4]} 21... Rd7 {[%clk 0:02:03.2]} 22. Nc7 {[%clk
0:02:19.5]} 1-0

[Event "Early-Titled-Tuesday-Blitz-April-02-2024"]
[Site "Chess.com"]
[Date "2024.04.02"]
[Round "7"]
[White "falzehope0"]
[Black "tortorchess"]
[Result "1-0"]
[WhiteElo "2383"]
[BlackElo "2213"]
[TimeControl "180+1"]
[EndTime "9:13:18 PDT"]
[Termination "falzehope0 won by resignation"]

1. d4 {[%clk 0:03:00.9]} 1... d5 {[%clk 0:02:59.3]} 2. e3 {[%clk 0:03:01]} 2...
Nf6 {[%clk 0:02:58.7]} 3. Bd3 {[%clk 0:03:01.1]} 3... e6 {[%clk 0:02:53]} 4. f4
{[%clk 0:03:02]} 4... c5 {[%clk 0:02:51.8]} 5. c3 {[%clk 0:03:01.6]} 5... Nc6
{[%clk 0:02:51.6]} 6. Nd2 {[%clk 0:03:00.7]} 6... Bd6 {[%clk 0:02:51.3]} 7. Nh3
{[%clk 0:02:58.7]} 7... cxd4 {[%clk 0:02:46.9]} 8. exd4 {[%clk 0:02:58.4]} 8...
O-O {[%clk 0:02:36.7]} 9. O-O {[%clk 0:02:57.5]} 9... h6 {[%clk 0:02:30.4]} 10.
Qe2 {[%clk 0:02:54]} 10... Re8 {[%clk 0:02:24.6]} 11. Nf3 {[%clk 0:02:50.6]}
11... Ng4 {[%clk 0:02:16.7]} 12. Ne5 {[%clk 0:02:47.2]} 12... Ngxe5 {[%clk
0:02:12.9]} 13. fxe5 {[%clk 0:02:45.5]} 13... Be7 {[%clk 0:02:12.6]} 14. Qh5
{[%clk 0:02:08.9]} 14... g6 {[%clk 0:01:47.4]} 15. Bxg6 {[%clk 0:01:54.5]} 1-0

[Event "Early-Titled-Tuesday-Blitz-April-02-2024"]
[Site "Chess.com"]
[Date "2024.04.02"]
[Round "7"]
[White "DonCiao"]
[Black "Barbix1"]
[Result "0-1"]
[WhiteElo "2012"]
[BlackElo "2312"]
[TimeControl "180+1"]
[EndTime "9:13:33 PDT"]
[Termination "Barbix1 won by resignation"]

1. c4 {[%clk 0:02:57.2]} 1... e5 {[%clk 0:02:58.9]} 2. g3 {[%clk 0:02:56.9]}
2... d6 {[%clk 0:02:58.2]} 3. Bg2 {[%clk 0:02:56.1]} 3... f5 {[%clk 0:02:56.1]}
4. Nc3 {[%clk 0:02:54.9]} 4... Nf6 {[%clk 0:02:54.3]} 5. d3 {[%clk 0:02:54.3]}
5... Be7 {[%clk 0:02:53.3]} 6. e4 {[%clk 0:02:54.1]} 6... O-O {[%clk 0:02:49.3]}
7. Nge2 {[%clk 0:02:46.5]} 7... c6 {[%clk 0:02:30.3]} 8. O-O {[%clk 0:02:46]}
8... Na6 {[%clk 0:02:29.4]} 9. h3 {[%clk 0:02:45.1]} 9... Qe8 {[%clk 0:02:24.7]}
10. Be3 {[%clk 0:02:44.2]} 10... Qg6 {[%clk 0:02:19.6]} 11. f4 {[%clk
0:02:40.8]} 11... fxe4 {[%clk 0:02:13.9]} 12. dxe4 {[%clk 0:02:39.1]} 12... exf4
{[%clk 0:02:09.3]} 13. gxf4 {[%clk 0:02:30]} 13... Bxh3 {[%clk 0:02:07.2]} 14.
Rf2 {[%clk 0:02:24.4]} 14... Ng4 {[%clk 0:01:51.5]} 15. f5 {[%clk 0:02:17.8]}
15... Nxf2 {[%clk 0:01:28.1]} 16. Qf1 {[%clk 0:02:04.6]} 16... Qxg2+ {[%clk
0:01:27]} 17. Qxg2 {[%clk 0:02:04]} 17... Bxg2 {[%clk 0:01:27.9]} 18. Kxg2
{[%clk 0:02:02.6]} 18... Ng4 {[%clk 0:01:26.3]} 0-1

[Event "Early-Titled-Tuesday-Blitz-April-02-2024"]
[Site "Chess.com"]
[Date "2024.04.02"]
[Round "7"]
[White "Escudito"]
[Black "IshviAggarwal"]
[Result "1-0"]
[WhiteElo "2372"]
[BlackElo "2148"]
[TimeControl "180+1"]
[EndTime "9:13:51 PDT"]
[Termination "Escudito won by resignation"]

1. d4 {[%clk 0:03:00.6]} 1... Nf6 {[%clk 0:02:57.4]} 2. Nf3 {[%clk 0:03:01.1]}
2... g6 {[%clk 0:02:56.2]} 3. c4 {[%clk 0:03:00.5]} 3... Bg7 {[%clk 0:02:56]} 4.
Nc3 {[%clk 0:03:00.9]} 4... d6 {[%clk 0:02:56.3]} 5. e4 {[%clk 0:03:00.8]} 5...
O-O {[%clk 0:02:56.9]} 6. Be2 {[%clk 0:03:00.7]} 6... c5 {[%clk 0:02:56.8]} 7.
d5 {[%clk 0:02:58.4]} 7... e6 {[%clk 0:02:57]} 8. O-O {[%clk 0:02:56.9]} 8...
exd5 {[%clk 0:02:53.6]} 9. exd5 {[%clk 0:02:57.8]} 9... Re8 {[%clk 0:02:52.6]}
10. h3 {[%clk 0:02:36.1]} 10... Na6 {[%clk 0:02:52.3]} 11. a3 {[%clk 0:02:32.5]}
11... Nc7 {[%clk 0:02:47.5]} 12. Bg5 {[%clk 0:02:29.3]} 12... h6 {[%clk
0:02:46.2]} 13. Bf4 {[%clk 0:02:28.5]} 13... a6 {[%clk 0:02:45.1]} 14. a4 {[%clk
0:02:27.9]} 14... Ne4 {[%clk 0:02:41.2]} 15. Nxe4 {[%clk 0:02:17.1]} 15... Rxe4
{[%clk 0:02:42.1]} 16. Be3 {[%clk 0:02:17.8]} 16... Bxb2 {[%clk 0:02:39.8]} 17.
Qb1 {[%clk 0:02:04.4]} 17... Rxe3 {[%clk 0:02:21.6]} 18. Qxb2 {[%clk 0:02:02.2]}
18... Re8 {[%clk 0:02:11.5]} 19. Bd3 {[%clk 0:02:02]} 19... Rb8 {[%clk 0:02:09]}
20. a5 {[%clk 0:01:59.1]} 20... Bd7 {[%clk 0:01:57.8]} 21. Nd2 {[%clk
0:01:57.7]} 21... Qg5 {[%clk 0:01:56]} 22. Ne4 {[%clk 0:01:56.5]} 22... Qe5
{[%clk 0:01:56.1]} 23. Nf6+ {[%clk 0:01:54.9]} 23... Kh8 {[%clk 0:01:51.1]} 24.
Qxe5 {[%clk 0:01:52.3]} 24... Rxe5 {[%clk 0:01:44.8]} 25. Nxd7 {[%clk
0:01:51.6]} 25... Re7 {[%clk 0:01:45.5]} 26. Nxb8 {[%clk 0:01:51.5]} 1-0

[Event "Early-Titled-Tuesday-Blitz-April-02-2024"]
[Site "Chess.com"]
[Date "2024.04.02"]
[Round "7"]
[White "dropstoneDP"]
[Black "PavelShkapenko"]
[Result "1/2-1/2"]
[WhiteElo "2988"]
[BlackElo "2704"]
[TimeControl "180+1"]
[EndTime "9:14:50 PDT"]
[Termination "Game drawn by agreement"]

1. e4 {[%clk 0:03:00.9]} 1... e5 {[%clk 0:02:58.2]} 2. Nf3 {[%clk 0:03:00.9]}
2... Nc6 {[%clk 0:02:58.2]} 3. Bc4 {[%clk 0:03:01.2]} 3... d6 {[%clk 0:02:58.3]}
4. Nc3 {[%clk 0:02:58.8]} 4... Be7 {[%clk 0:02:54.6]} 5. d4 {[%clk 0:02:57.4]}
5... Nf6 {[%clk 0:02:40.4]} 6. d5 {[%clk 0:02:55.5]} 6... Nb8 {[%clk 0:02:39.7]}
7. O-O {[%clk 0:02:53]} 7... O-O {[%clk 0:02:37]} 8. h3 {[%clk 0:02:52.5]} 8...
Nbd7 {[%clk 0:02:36.2]} 9. a4 {[%clk 0:02:51]} 9... a5 {[%clk 0:02:35.7]} 10.
Be3 {[%clk 0:02:50.2]} 10... h6 {[%clk 0:02:34.5]} 11. Re1 {[%clk 0:02:50]}
11... Nh7 {[%clk 0:02:34.6]} 12. Bd3 {[%clk 0:02:48.1]} 12... Ng5 {[%clk
0:02:34.6]} 13. Nxg5 {[%clk 0:02:47.2]} 13... Bxg5 {[%clk 0:02:34.5]} 14. Nb5
{[%clk 0:02:44.9]} 14... Bxe3 {[%clk 0:02:32.8]} 15. Rxe3 {[%clk 0:02:45.8]}
15... Nc5 {[%clk 0:02:32.8]} 16. Qh5 {[%clk 0:02:16]} 16... Bd7 {[%clk
0:02:29.7]} 17. Bf1 {[%clk 0:02:09.6]} 17... Bxb5 {[%clk 0:02:28.6]} 18. Bxb5
{[%clk 0:02:09.2]} 18... Qg5 {[%clk 0:02:20]} 19. Qxg5 {[%clk 0:02:03.9]} 19...
hxg5 {[%clk 0:02:20]} 20. c3 {[%clk 0:01:56.9]} 20... Ra7 {[%clk 0:02:05.1]} 21.
b4 {[%clk 0:01:55.2]} 21... Na6 {[%clk 0:02:04.6]} 22. Bxa6 {[%clk 0:01:53.6]}
22... Rxa6 {[%clk 0:02:04.5]} 23. b5 {[%clk 0:01:51.5]} 23... Raa8 {[%clk
0:02:00.1]} 24. Rg3 {[%clk 0:01:17.7]} 24... f6 {[%clk 0:01:58.6]} 25. Kf1
{[%clk 0:01:16]} 25... b6 {[%clk 0:01:58.3]} 26. Ke2 {[%clk 0:01:09.4]} 26...
Kf7 {[%clk 0:01:58.4]} 27. Rf3 {[%clk 0:01:01.2]} 27... Rh8 {[%clk 0:01:58]} 28.
g4 {[%clk 0:01:01.7]} 28... Kg6 {[%clk 0:01:55.1]} 29. Rh1 {[%clk 0:01:01.7]}
29... Rh4 {[%clk 0:01:54.3]} 30. Kf1 {[%clk 0:01:02]} 30... Rah8 {[%clk
0:01:53.2]} 31. Kg2 {[%clk 0:01:02.6]} 31... R8h7 {[%clk 0:01:50.9]} 1/2-1/2

[Event "Early-Titled-Tuesday-Blitz-April-02-2024"]
[Site "Chess.com"]
[Date "2024.04.02"]
[Round "7"]
[White "Vse_po_kaify"]
[Black "NelsonLinda"]
[Result "1-0"]
[WhiteElo "2512"]
[BlackElo "2632"]
[TimeControl "180+1"]
[EndTime "9:14:54 PDT"]
[Termination "Vse_po_kaify won by resignation"]

1. e4 {[%clk 0:02:59.5]} 1... c5 {[%clk 0:02:57]} 2. c4 {[%clk 0:02:59.4]} 2...
Nc6 {[%clk 0:02:55.5]} 3. Nc3 {[%clk 0:02:59.5]} 3... g6 {[%clk 0:02:40.6]} 4.
g3 {[%clk 0:02:59.5]} 4... Bg7 {[%clk 0:02:40.9]} 5. d3 {[%clk 0:02:59.4]} 5...
e6 {[%clk 0:02:41]} 6. Bg2 {[%clk 0:02:58.6]} 6... Nge7 {[%clk 0:02:40.5]} 7.
Nge2 {[%clk 0:02:58.9]} 7... O-O {[%clk 0:02:40.1]} 8. O-O {[%clk 0:02:59.3]}
8... a6 {[%clk 0:02:37.7]} 9. f4 {[%clk 0:02:59.5]} 9... Rb8 {[%clk 0:02:34]}
10. Rb1 {[%clk 0:02:59.6]} 10... b5 {[%clk 0:02:33.8]} 11. b3 {[%clk 0:02:59.1]}
11... Nd4 {[%clk 0:02:20.2]} 12. Be3 {[%clk 0:02:57.7]} 12... b4 {[%clk
0:02:11.4]} 13. Na4 {[%clk 0:02:57.3]} 13... Qa5 {[%clk 0:02:09.1]} 14. g4
{[%clk 0:02:53.9]} 14... f5 {[%clk 0:02:04.4]} 15. gxf5 {[%clk 0:02:53.3]} 15...
exf5 {[%clk 0:02:00.3]} 16. e5 {[%clk 0:02:53.3]} 16... Ne6 {[%clk 0:01:38.5]}
17. d4 {[%clk 0:02:50.2]} 17... cxd4 {[%clk 0:01:36.5]} 18. Nxd4 {[%clk
0:02:50.3]} 18... Qc7 {[%clk 0:01:07.3]} 19. Nxe6 {[%clk 0:02:38.2]} 19... dxe6
{[%clk 0:01:08.2]} 20. Qd6 {[%clk 0:02:38.1]} 20... Qd7 {[%clk 0:00:41.7]} 21.
Qxb8 {[%clk 0:02:32.9]} 21... g5 {[%clk 0:00:36.1]} 22. Qd6 {[%clk 0:02:27.1]}
22... Qe8 {[%clk 0:00:35.6]} 23. Nb6 {[%clk 0:02:22.6]} 23... Ng6 {[%clk
0:00:32.6]} 24. Bc6 {[%clk 0:02:04.9]} 24... Qf7 {[%clk 0:00:29.7]} 25. Nxc8
{[%clk 0:02:04.7]} 25... Rxc8 {[%clk 0:00:30.6]} 26. Bd7 {[%clk 0:02:05]} 26...
Rd8 {[%clk 0:00:27.1]} 27. Bxe6 {[%clk 0:02:05]} 1-0

[Event "Early-Titled-Tuesday-Blitz-April-02-2024"]
[Site "Chess.com"]
[Date "2024.04.02"]
[Round "7"]
[White "JoshWeinstein"]
[Black "valik3504"]
[Result "0-1"]
[WhiteElo "2365"]
[BlackElo "2546"]
[TimeControl "180+1"]
[EndTime "9:15:04 PDT"]
[Termination "valik3504 won by resignation"]

1. e4 {[%clk 0:03:00.9]} 1... c5 {[%clk 0:02:55.9]} 2. Nc3 {[%clk 0:03:01.2]}
2... e6 {[%clk 0:02:52.9]} 3. Bc4 {[%clk 0:03:00.8]} 3... Nf6 {[%clk 0:02:51.6]}
4. d3 {[%clk 0:03:00.4]} 4... Nc6 {[%clk 0:02:48.8]} 5. Bb3 {[%clk 0:02:56]}
5... d6 {[%clk 0:02:45.1]} 6. Nf3 {[%clk 0:02:54.2]} 6... Be7 {[%clk 0:02:45]}
7. O-O {[%clk 0:02:48.8]} 7... O-O {[%clk 0:02:45.1]} 8. h3 {[%clk 0:02:48.6]}
8... a6 {[%clk 0:02:35.7]} 9. a3 {[%clk 0:02:44.7]} 9... b5 {[%clk 0:02:33.9]}
10. Ne2 {[%clk 0:02:43.6]} 10... Bb7 {[%clk 0:02:32.6]} 11. c3 {[%clk
0:02:42.7]} 11... c4 {[%clk 0:02:28.2]} 12. Bc2 {[%clk 0:02:41.3]} 12... cxd3
{[%clk 0:02:28.4]} 13. Qxd3 {[%clk 0:02:39.3]} 13... Qc7 {[%clk 0:02:22.3]} 14.
Bg5 {[%clk 0:02:32.9]} 14... Rfd8 {[%clk 0:02:09.8]} 15. Rad1 {[%clk 0:02:24.8]}
15... Ne5 {[%clk 0:02:07.2]} 16. Nxe5 {[%clk 0:02:17.2]} 16... dxe5 {[%clk
0:02:08.1]} 17. Qf3 {[%clk 0:02:13.4]} 17... h6 {[%clk 0:02:06.6]} 18. Be3
{[%clk 0:02:07.9]} 18... a5 {[%clk 0:01:58.8]} 19. Ng3 {[%clk 0:02:07.8]} 19...
b4 {[%clk 0:01:56.9]} 20. Bc1 {[%clk 0:01:45.5]} 20... bxa3 {[%clk 0:01:46.5]}
21. bxa3 {[%clk 0:01:45]} 21... Rac8 {[%clk 0:01:45.2]} 22. Ne2 {[%clk
0:01:34.6]} 22... Qc4 {[%clk 0:01:38.6]} 23. Rfe1 {[%clk 0:01:29.4]} 23... Bxe4
{[%clk 0:01:35.3]} 24. Bxe4 {[%clk 0:01:26.2]} 24... Qxe4 {[%clk 0:01:34]} 25.
Qxe4 {[%clk 0:01:22]} 25... Nxe4 {[%clk 0:01:31.6]} 26. Rxd8+ {[%clk 0:01:17.8]}
26... Bxd8 {[%clk 0:01:27.8]} 27. Ng3 {[%clk 0:01:13.6]} 27... Nxg3 {[%clk
0:01:19.7]} 28. fxg3 {[%clk 0:01:11.6]} 28... Rxc3 {[%clk 0:01:19.4]} 29. Bb2
{[%clk 0:01:10.1]} 29... Rxg3 {[%clk 0:01:18.5]} 30. Rxe5 {[%clk 0:01:09.4]}
30... Bf6 {[%clk 0:01:18.3]} 31. Rb5 {[%clk 0:01:06.9]} 31... Bxb2 {[%clk
0:01:17.8]} 0-1

[Event "Early-Titled-Tuesday-Blitz-April-02-2024"]
[Site "Chess.com"]
[Date "2024.04.02"]
[Round "7"]
[White "Kildepiotr"]
[Black "Likvidator228"]
[Result "1-0"]
[WhiteElo "2749"]
[BlackElo "2566"]
[TimeControl "180+1"]
[EndTime "9:15:05 PDT"]
[Termination "Kildepiotr won by resignation"]

1. Nf3 {[%clk 0:03:00.9]} 1... Nf6 {[%clk 0:02:59.1]} 2. g3 {[%clk 0:03:01.3]}
2... g6 {[%clk 0:02:59.5]} 3. Bg2 {[%clk 0:03:02]} 3... Bg7 {[%clk 0:03:00.2]}
4. O-O {[%clk 0:03:02.9]} 4... O-O {[%clk 0:03:00.7]} 5. d4 {[%clk 0:03:03.6]}
5... d5 {[%clk 0:03:01]} 6. c4 {[%clk 0:03:03.4]} 6... c6 {[%clk 0:03:00.1]} 7.
Nc3 {[%clk 0:03:03.9]} 7... Ne4 {[%clk 0:03:00.5]} 8. Qb3 {[%clk 0:03:03.5]}
8... Nxc3 {[%clk 0:03:00.4]} 9. bxc3 {[%clk 0:03:04.4]} 9... dxc4 {[%clk
0:02:59.9]} 10. Qxc4 {[%clk 0:03:05.3]} 10... Be6 {[%clk 0:02:58]} 11. Qb4
{[%clk 0:03:05.7]} 11... Bc8 {[%clk 0:02:52.6]} 12. Bg5 {[%clk 0:03:00.2]} 12...
Re8 {[%clk 0:02:52.5]} 13. a4 {[%clk 0:02:58]} 13... Na6 {[%clk 0:02:52.8]} 14.
Qb2 {[%clk 0:02:56.7]} 14... h6 {[%clk 0:02:52.6]} 15. Bf4 {[%clk 0:02:55.8]}
15... Nc7 {[%clk 0:02:52.2]} 16. e4 {[%clk 0:02:54.8]} 16... b6 {[%clk
0:02:41.9]} 17. Ne5 {[%clk 0:02:36.2]} 17... Bb7 {[%clk 0:02:35.7]} 18. a5
{[%clk 0:02:36.1]} 18... g5 {[%clk 0:02:24.5]} 19. axb6 {[%clk 0:02:16.8]} 19...
axb6 {[%clk 0:02:24.6]} 20. Qxb6 {[%clk 0:02:15.2]} 20... gxf4 {[%clk
0:02:20.7]} 21. Qxb7 {[%clk 0:02:14.6]} 21... Bxe5 {[%clk 0:02:20.2]} 22. dxe5
{[%clk 0:02:12.1]} 22... Rxa1 {[%clk 0:02:18.6]} 23. Rxa1 {[%clk 0:02:11.7]}
23... fxg3 {[%clk 0:02:10.2]} 24. hxg3 {[%clk 0:02:12.6]} 24... Qd7 {[%clk
0:02:05.6]} 25. e6 {[%clk 0:01:55.8]} 25... fxe6 {[%clk 0:02:01.2]} 26. e5
{[%clk 0:01:56.1]} 26... Rf8 {[%clk 0:01:54.3]} 27. Qxc6 {[%clk 0:01:49.4]}
27... Qxc6 {[%clk 0:01:45.9]} 28. Bxc6 {[%clk 0:01:50.3]} 28... Nd5 {[%clk
0:01:45.7]} 29. c4 {[%clk 0:01:43.6]} 29... Nc3 {[%clk 0:01:44.5]} 30. Bd7
{[%clk 0:01:42.3]} 30... Kf7 {[%clk 0:01:44]} 31. Ra6 {[%clk 0:01:40.7]} 31...
Rd8 {[%clk 0:01:35.8]} 32. Bxe6+ {[%clk 0:01:39.7]} 32... Kg7 {[%clk 0:01:36.3]}
33. c5 {[%clk 0:01:32.3]} 33... Ne2+ {[%clk 0:01:36.2]} 34. Kg2 {[%clk 0:01:32]}
34... Nd4 {[%clk 0:01:35.3]} 35. Bg4 {[%clk 0:01:28]} 35... Rd5 {[%clk
0:01:32.6]} 36. c6 {[%clk 0:01:21]} 36... Rc5 {[%clk 0:01:32.5]} 37. Bd7 {[%clk
0:01:18.2]} 37... e6 {[%clk 0:01:32]} 38. Ra7 {[%clk 0:01:14.7]} 38... Kg6
{[%clk 0:01:32.2]} 39. c7 {[%clk 0:01:14.8]} 1-0

[Event "Early-Titled-Tuesday-Blitz-April-02-2024"]
[Site "Chess.com"]
[Date "2024.04.02"]
[Round "7"]
[White "TitanChess666"]
[Black "SAInt_666"]
[Result "0-1"]
[WhiteElo "2524"]
[BlackElo "2708"]
[TimeControl "180+1"]
[EndTime "9:15:06 PDT"]
[Termination "SAInt_666 won by resignation"]

1. e4 {[%clk 0:03:00.9]} 1... c5 {[%clk 0:02:59.3]} 2. Nf3 {[%clk 0:03:00.9]}
2... d6 {[%clk 0:02:59.3]} 3. d4 {[%clk 0:03:00.8]} 3... cxd4 {[%clk 0:03:00.2]}
4. Nxd4 {[%clk 0:03:01.7]} 4... Nf6 {[%clk 0:03:00.5]} 5. Nc3 {[%clk 0:03:02.2]}
5... Nc6 {[%clk 0:03:00.7]} 6. Bg5 {[%clk 0:03:01.4]} 6... e6 {[%clk 0:03:00.9]}
7. Qd2 {[%clk 0:03:01.3]} 7... a6 {[%clk 0:03:01.4]} 8. O-O-O {[%clk 0:03:00.9]}
8... Bd7 {[%clk 0:03:01.8]} 9. f3 {[%clk 0:02:56.8]} 9... Be7 {[%clk 0:02:57.1]}
10. h4 {[%clk 0:02:56.5]} 10... Qc7 {[%clk 0:02:54.1]} 11. Kb1 {[%clk
0:02:54.8]} 11... Nxd4 {[%clk 0:02:51.5]} 12. Qxd4 {[%clk 0:02:54.6]} 12... b5
{[%clk 0:02:49.9]} 13. g4 {[%clk 0:02:53.6]} 13... h5 {[%clk 0:02:44.2]} 14.
gxh5 {[%clk 0:02:49.4]} 14... Nxh5 {[%clk 0:02:45.1]} 15. Bxe7 {[%clk 0:02:49]}
15... Kxe7 {[%clk 0:02:46]} 16. Rg1 {[%clk 0:02:35.3]} 16... Rac8 {[%clk
0:02:39.4]} 17. Rg5 {[%clk 0:02:32.7]} 17... Bc6 {[%clk 0:02:21.2]} 18. Qd2
{[%clk 0:02:26.6]} 18... e5 {[%clk 0:02:10.7]} 19. Bh3 {[%clk 0:02:24.3]} 19...
Rcd8 {[%clk 0:02:10.2]} 20. Bg4 {[%clk 0:01:45.4]} 20... Nf4 {[%clk 0:02:03.1]}
21. h5 {[%clk 0:01:24.9]} 21... Rh6 {[%clk 0:01:50.4]} 22. Ne2 {[%clk 0:01:09]}
22... Nxe2 {[%clk 0:01:47.8]} 23. Qxe2 {[%clk 0:01:09.3]} 23... Kf8 {[%clk
0:01:47.3]} 24. Bf5 {[%clk 0:01:00.1]} 24... f6 {[%clk 0:01:43.8]} 25. Rg6
{[%clk 0:00:54.8]} 25... Rxh5 {[%clk 0:01:43.9]} 26. Rdg1 {[%clk 0:00:55.1]}
26... Be8 {[%clk 0:01:39.2]} 27. Rxg7 {[%clk 0:00:46.2]} 27... Qxg7 {[%clk
0:01:38.1]} 28. Rxg7 {[%clk 0:00:46.4]} 28... Rh1+ {[%clk 0:01:38.2]} 0-1